Cogmind - Beta 15 @@@ ROGUE MODE // 2025.09.08 @ 12:50:00 Player: Petvaria Result: Destroyed by Combat Programmer with EMDS Performance ------------- Evolutions (9) 4500 Regions Visited (27) 5400 Robots Destroyed (81) 405 Value Destroyed (2114) 2114 Prototype IDs (221) 4420 Alien Tech Used (3) 600 Bonus (13941) 13941 TOTAL SCORE: 31380 Bonus ------- High Alert Combat Kills 41 Met Data Miner 300 Used Data Conduit 3000 Met Imprinter 300 Met Zhirov 300 Found Hidden Lab 3000 Decrypted A0 Command 3000 Acquired SGEMP 2000 Delivered SGEMP 2000 Cogmind --------- Core Integrity 0/1600 Matter 253/300 Energy 360/700 System Corruption 12% Temperature Cool (0) Movement Core (250) Ox4 Location -1/Command Parts ------- > --- POWER (3) -------- (None) > --- PROPULSION (8) --- (None) > --- UTILITY (11) ----- Experimental Energy Well Advanced Signal Interpreter > --- WEAPON (3) ------- Enhanced Nova Cannon > --- INVENTORY (5) ---- (None) Peak State ------------ > --- POWER ------------ Particle Reactor Light Quantum Reactor > --- PROPULSION ------- Improved Cesium-ion Thruster Improved Cesium-ion Thruster Improved Cesium-ion Thruster Improved Cesium-ion Thruster Field Propulsion Drive Field Propulsion Drive Field Propulsion Drive Q-thruster > --- UTILITY ---------- Medium Storage Unit Quantum Shading Machine Advanced Sensor Array Advanced Signal Interpreter Advanced Targeting Computer Experimental Targeting Computer Weapon Mount Improved Cloaking Device Improved Light Armor Plating Hacking Suite > --- WEAPON ----------- Guided Remote Datajack Enhanced Force Lance > --- INVENTORY -------- Micro Antimatter Reactor High-density Centrium Heavy Treads Improved Cesium-ion Thruster Field Propulsion Drive Enhanced Nova Cannon Potential Cannon SGEMP Prototype [Rating: 137] Favorites ----------- Power Light Ion Engine Engine Light Ion Engine Power Core Nuclear Core Reactor Particle Reactor Propulsion Cesium-ion Thruster Treads Light Treads Leg Aluminum Leg Wheel Wheel Flight Unit Cesium-ion Thruster Utility Hacking Suite Device Improved Sensor Array Storage Large Storage Unit Processor Improved Signal Interpreter Hackware Hacking Suite Protection Hardened Light Armor Plating Weapon Small Laser Energy Gun Small Laser Energy Cannon Enhanced Nova Cannon Ballistic Gun Heavy Assault Rifle Special Weapon Guided Remote Datajack Slashing Weapon Chainsword Piercing Weapon Makeshift Spear Special Melee Weapon Improved Datajack Build | -11 -10 -9 -8 -7 -7 -7 -7 -6 -6 -6 -6 -6 -5 -5 -5 -5 -5 -4 -4 -4 -4 -3 -3 -2 -2 -1 -1 ------- Run | Yrd Mat Mat Mat Fac Low Low Dat Pro Fac Low Low Zio Pro Fac Upp Upp Zhi Pro Fac Arm Lab Res Tes Res Qua Acc Com Slots Evolved 18 | . . 2 2 2 . . . . 2 . . . . 2 . . . . 2 . . 2 . 2 . 2 . Power 2 | . . . . . . . . . . . . . . . . . . . . . . 1 . . . 1 . Propulsion 6 | . . 1 1 . . . . . 1 . . . . . . . . . 1 . . 1 . 1 . . . Utility 9 | . . 1 1 2 . . . . 1 . . . . 2 . . . . 1 . . . . 1 . . . Weapon 1 | . . . . . . . . . . . . . . . . . . . . . . . . . . 1 . Parts Attached 114 | 6 11 24 12 4 . . 1 1 4 4 . 1 . 3 . 2 2 1 2 . 5 5 9 6 2 2 7 Power 15 | 1 2 2 1 . . . . . 1 1 . . . . . 1 1 . . . 1 1 . 2 . . 1 Engine 9 | 1 2 1 1 . . . . . 1 1 . . . . . 1 1 . . . . . . . . . . Core 1 | . . 1 . . . . . . . . . . . . . . . . . . . . . . . . . Reactor 5 | . . . . . . . . . . . . . . . . . . . . . 1 1 . 2 . . 1 Propulsion 40 | 2 4 10 4 2 . . 1 1 3 1 . . . . . 1 . . . . . 2 4 1 . 1 3 Treads 13 | 2 1 8 . . . . . . . . . . . . . . . . . . . . . . . . 2 Leg 3 | . 2 . . . . . . . . . . . . . . . . . . . . . 1 . . . . Wheel 2 | . 1 1 . . . . . . . . . . . . . . . . . . . . . . . . . Hover . | . . . . . . . . . . . . . . . . . . . . . . . . . . . . Flight 22 | . . 1 4 2 . . 1 1 3 1 . . . . . 1 . . . . . 2 3 1 . 1 1 Utility 35 | 1 2 5 4 2 . . . . . 1 . . . 2 . . 1 1 2 . 2 2 5 2 2 1 . Device 9 | . 1 . 1 . . . . . . . . . . . . . . . 1 . 1 1 1 2 1 . . Storage 5 | 1 1 . 1 . . . . . . . . . . . . . . . . . . . . . 1 1 . Processor 5 | . . . 1 . . . . . . . . . . . . . . . 1 . . . 3 . . . . Hackware 8 | . . . 1 2 . . . . . 1 . . . 2 . . . 1 . . . 1 . . . . . Protection 8 | . . 5 . . . . . . . . . . . . . . 1 . . . 1 . 1 . . . . Artifact . | . . . . . . . . . . . . . . . . . . . . . . . . . . . . Weapon 24 | 2 3 7 3 . . . . . . 1 . 1 . 1 . . . . . . 2 . . 1 . . 3 Energy Gun 6 | 2 3 1 . . . . . . . . . . . . . . . . . . . . . . . . . Energy Cannon 4 | . . . . . . . . . . . . . . . . . . . . . 1 . . . . . 3 Ballistic Gun 6 | . . 6 . . . . . . . . . . . . . . . . . . . . . . . . . Ballistic Cannon . | . . . . . . . . . . . . . . . . . . . . . . . . . . . . Launcher . | . . . . . . . . . . . . . . . . . . . . . . . . . . . . Special Weapon 1 | . . . . . . . . . . . . . . . . . . . . . 1 . . . . . . Impact Weapon . | . . . . . . . . . . . . . . . . . . . . . . . . . . . . Slashing Weapon 2 | . . . 1 . . . . . . 1 . . . . . . . . . . . . . . . . . Piercing Weapon 2 | . . . . . . . . . . . . 1 . . . . . . . . . . . 1 . . . Special Melee Weapon 3 | . . . 2 . . . . . . . . . . 1 . . . . . . . . . . . . . Unidentified Prototypes 9 | . . 1 . 1 . . . . . . . . . . . . 1 . . 1 4 1 . . . . . Parts Lost 62 | . 7 13 . . . . 1 2 . . . . . . . 4 . 2 1 . 1 5 . 1 . . 25 Power 9 | . 1 1 . . . . . 1 . . . . . . . 1 . . . . . 1 . . . . 4 Propulsion 22 | . 3 4 . . . . 1 1 . . . . . . . 1 . . . . . . . . . . 12 Utility 21 | . . 4 . . . . . . . . . . . . . 2 . 1 1 . 1 4 . 1 . . 7 Weapon 10 | . 3 4 . . . . . . . . . . . . . . . 1 . . . . . . . . 2 Highest Loss Streak 25 | . 3 7 . . . . 1 3 . . . . . . . 3 . 2 1 . 1 5 . 1 . . 25 To Critical Strikes 1 | . . . . . . . . . . . . . . . . . . . . . . . . . . . 1 Average Backups 10 | 2 7 14 11 9 10 10 9 7 9 10 10 10 10 9 10 9 8 10 10 10 8 8 7 6 6 6 4 Power 1 | . 1 1 1 1 1 1 1 . . 1 1 1 1 1 2 2 1 2 2 2 1 1 1 . 1 1 . Propulsion 3 | 1 2 1 3 5 6 6 6 4 6 7 6 5 5 5 5 4 4 4 4 4 3 2 4 3 3 2 1 Utility 2 | . 1 4 4 3 3 3 2 3 2 2 2 3 4 2 3 3 3 3 3 3 3 2 . . . . . Weapon 2 | . 1 7 2 . . . . . . . . . . . . . . . . . . 1 1 1 2 2 2 Tool/Special . | . . . . . . . . . . . . . . . . . . . . . . . . . . . . Unused Backups 19 | . . 3 8 1 . . . . 2 . 1 1 . . . . . . . . . . 1 1 . 1 . Power 1 | . . . . . . . . . . . . 1 . . . . . . . . . . . . . . . Propulsion 5 | . . . 2 . . . . . . . 1 . . . . . . . . . . . 1 1 . . . Utility 4 | . . 1 . 1 . . . . 2 . . . . . . . . . . . . . . . . . . Weapon 9 | . . 2 6 . . . . . . . . . . . . . . . . . . . . . . 1 . Tool/Special . | . . . . . . . . . . . . . . . . . . . . . . . . . . . . Average Slot Usage (%) 89 | . 92 84 86 99 100 100 100 100 90 94 100 100 100 97 100 95 91 90 78 78 83 88 91 92 91 88 54 Engine 8 | . 13 9 9 7 7 7 7 7 6 6 6 6 6 5 5 5 5 5 5 5 2 . 2 . . . . Treads 11 | . 17 25 10 . . . . . . . . . . . . . . . . . . . . . . . 3 Leg 2 | . 9 1 . . . . . . . . . . . . . . . . . . . . . . . . . Flight 13 | . . . 20 30 30 30 30 30 30 33 33 33 33 29 29 29 29 29 26 26 28 31 33 32 34 32 17 Device 4 | . 8 . 4 7 7 7 7 7 6 6 6 6 6 5 5 5 5 3 1 5 3 1 5 10 13 16 8 Storage 9 | . 14 11 9 7 7 7 7 7 6 6 6 6 6 5 5 5 5 5 5 5 5 4 4 4 4 7 6 Processor 3 | . . . 4 7 7 7 7 7 6 6 6 6 6 5 5 5 5 5 5 5 5 4 17 14 13 12 7 Hackware 9 | . . . 2 22 23 23 23 23 20 21 26 26 26 34 35 30 23 24 25 21 21 21 4 4 4 4 1 Protection 5 | . . 11 7 . . . . . . . . . . . . . 2 5 5 5 8 9 9 7 4 4 1 Energy Gun 8 | . 27 9 . . . . . . . . . . . . . . . . . . . . . . . . . Ballistic Gun 3 | . . 11 8 . . . . . . . . . . . . . . . . . . . . . . . . Slashing Weapon 1 | . . . 4 7 7 7 7 7 6 6 6 3 . . . . . . . . . . . . . . . Piercing Weapon 1 | . . . . . . . . . . . . 2 6 5 5 5 5 5 5 5 4 4 4 4 4 4 3 Special Melee Weapon 1 | . . . 4 7 7 7 7 7 6 6 6 6 6 3 5 5 5 3 . . . . . . . . . Peak Build Rating 137 | 6 8 17 32 40 38 38 38 38 46 50 51 52 52 60 60 60 61 61 68 62 85 112 117 136 137 135 135 Average Rating 33 | 4 6 11 22 38 38 38 38 37 43 47 50 51 52 58 60 56 56 59 59 61 67 96 106 125 130 134 91 On Entrance 56 | . 6 8 15 32 38 38 38 38 38 46 50 51 52 52 60 60 52 61 58 62 61 78 78 117 130 134 135 Naked Turns . | . . . . . . . . . . . . . . . . . . . . . . . . . . . . Heaviest Build 66 | 13 28 39 39 18 18 18 18 20 24 25 25 25 24 24 24 24 24 24 23 23 49 37 46 66 65 65 62 Greatest Support 170 | 40 40 63 60 21 20 20 20 20 27 27 27 27 27 27 27 27 27 27 27 27 33 42 66 66 66 66 170 Greatest Overweight (x) 3 | . 2 3 1 . . . . . . . . . . . . . . . . . 1 . . . . . 2 Average Overweight (x) . | . . . . . . . . . . . . . . . . . . . . . . . . . . . . Largest Inventory Capacity 15 | 8 15 15 15 10 10 10 10 10 10 10 10 10 10 10 10 10 10 10 10 10 10 10 10 10 10 10 10 Average Capacity 12 | 7 13 15 12 10 10 10 10 10 10 10 10 10 10 10 10 10 10 10 10 10 10 10 10 10 10 10 8 Most Carried 15 | 5 13 15 15 10 10 10 10 9 10 10 10 10 10 10 10 10 10 10 10 10 10 10 10 10 10 10 10 Average Carried 10 | 2 7 14 11 9 10 10 9 7 9 10 10 9 10 9 10 9 8 10 10 9 8 9 9 9 10 9 6 Final Capacity 15 | 8 15 15 10 10 10 10 10 10 10 10 10 10 10 10 10 10 10 10 10 10 10 10 10 10 10 10 5 Final Carried 15 | 3 13 15 10 10 10 10 9 8 10 10 10 10 10 10 10 8 10 10 10 9 10 10 10 10 10 10 . Class Distribution -------------------- 39% | Scavenger-Mutant 27% | Hacker-Sprinter 17% | Mutant 8% | Sprinter 6% | Wizard-Sprinter Dominant Class ---------------- Scavenger-Mutant | -10/Materials Scavenger-Mutant | -9/Materials Sprinter | -8/Materials Hacker-Sprinter | -7/Factory Hacker-Sprinter | -7/Lower Caves Hacker-Sprinter | -7/Lower Caves Hacker-Sprinter | -7/Data Miner Hacker-Sprinter | -6/Proximity Caves Hacker-Sprinter | -6/Factory Hacker-Sprinter | -6/Lower Caves Hacker-Sprinter | -6/Lower Caves Hacker-Sprinter | -6/Zion Hacker-Sprinter | -5/Proximity Caves Wizard-Sprinter | -5/Factory Wizard-Sprinter | -5/Upper Caves Hacker-Sprinter | -5/Upper Caves Hacker-Sprinter | -5/Zhirov Hacker-Sprinter | -4/Proximity Caves Hacker-Sprinter | -4/Factory Hacker-Sprinter | -4/Armory Hacker-Sprinter | -4/Lab Wizard-Sprinter | -3/Research Sprinter | -3/Testing Sprinter | -2/Research Sprinter | -2/Quarantine Sprinter | -1/Access Mutant | -1/Command Resources | -11 -10 -9 -8 -7 -7 -7 -7 -6 -6 -6 -6 -6 -5 -5 -5 -5 -5 -4 -4 -4 -4 -3 -3 -2 -2 -1 -1 ----------- Run | Yrd Mat Mat Mat Fac Low Low Dat Pro Fac Low Low Zio Pro Fac Upp Upp Zhi Pro Fac Arm Lab Res Tes Res Qua Acc Com Matter Collected 1903 | 198 153 686 . 76 94 . . 20 . 80 . 10 . . 30 . 45 10 . . . 145 . 12 293 . 51 Remotely . | . . . . . . . . . . . . . . . . . . . . . . . . . . . . Salvage Created 3088 | . 629 1456 . 25 . . . . . . . . . . . . 107 . . . . 145 . 12 342 . 372 Parts 179 | . 41 93 . 4 . . . . . . . . . . . . 1 . . . . 2 . 2 15 . 21 Haulers Intercepted 5 | . . 5 . . . . . . . . . . . . . . . . . . . . . . . . . Recyclers Shooed 5 | . . 5 . . . . . . . . . . . . . . . . . . . . . . . . . Parts Field Recycled . | . . . . . . . . . . . . . . . . . . . . . . . . . . . . Retrieved Matter . | . . . . . . . . . . . . . . . . . . . . . . . . . . . . Parts Self-Destructed 6 | . . . . . 3 . . . . . . . 1 . . 1 1 . . . . . . . . . . Prevented 1 | . . . . . . . . . . . . . 1 . . . . . . . . . . . . . . Kills | -11 -10 -9 -8 -7 -7 -7 -7 -6 -6 -6 -6 -6 -5 -5 -5 -5 -5 -4 -4 -4 -4 -3 -3 -2 -2 -1 -1 ------- Run | Yrd Mat Mat Mat Fac Low Low Dat Pro Fac Low Low Zio Pro Fac Upp Upp Zhi Pro Fac Arm Lab Res Tes Res Qua Acc Com Combat Hostiles Destroyed 56 | . 16 30 . . . . . . . . . . . . . . . . . . . . . . . . 10 Guns 46 | . 16 30 . . . . . . . . . . . . . . . . . . . . . . . . . Cannons 10 | . . . . . . . . . . . . . . . . . . . . . . . . . . . 10 Classes Destroyed 11 | . 5 5 . . . . . . . . . . . . . . . . . . . . . . . . 1 Worker 2 | . . 1 . . . . . . . . . . . . . . . . . . . . . 1 . . . Builder 2 | . 1 1 . . . . . . . . . . . . . . . . . . . . . . . . . Tunneler 1 | . 1 . . . . . . . . . . . . . . . . . . . . . . . . . . Hauler 5 | . . 5 . . . . . . . . . . . . . . . . . . . . . . . . . Recycler 5 | . . 1 . . . . . . . . . . . . . . . . . . . 1 . . 3 . . Operator 9 | . 3 5 . 1 . . . . . . . . . . . . . . . . . . . . . . . Watcher 1 | . . 1 . . . . . . . . . . . . . . . . . . . . . . . . . Swarmer 24 | . 3 12 . . . . . . . . . . . . . . . . . . . . . . . . 9 Grunt 23 | . 13 10 . . . . . . . . . . . . . . . . . . . . . . . . . Sentry 8 | . . 8 . . . . . . . . . . . . . . . . . . . . . . . . . Programmer 1 | . . . . . . . . . . . . . . . . . . . . . . . . . . . 1 Best Kill Streak 10 | . 4 8 . 1 . . . . . . . . . . . . . . . . . 1 . 1 3 . 10 Combat Bots Only 10 | . 3 7 . . . . . . . . . . . . . . . . . . . . . . . . 10 Max Kills in Single Turn 2 | . 1 2 . 1 . . . . . . . . . . . . . . . . . 1 . 1 1 . 1 Gunslinging 1 | . . 1 . . . . . . . . . . . . . . . . . . . . . . . . . Exploded . | . . . . . . . . . . . . . . . . . . . . . . . . . . . . Melee . | . . . . . . . . . . . . . . . . . . . . . . . . . . . . Uniques/NPCs Destroyed 1 | . . . . . . . . . . . . . . . . . . . . . 1 . . . . . . A5 (-4/Lab) Combat | -11 -10 -9 -8 -7 -7 -7 -7 -6 -6 -6 -6 -6 -5 -5 -5 -5 -5 -4 -4 -4 -4 -3 -3 -2 -2 -1 -1 -------- Run | Yrd Mat Mat Mat Fac Low Low Dat Pro Fac Low Low Zio Pro Fac Upp Upp Zhi Pro Fac Arm Lab Res Tes Res Qua Acc Com Hostile Shots Fired 757 | . 93 239 4 . 3 . 5 31 2 9 . . 2 . . 19 . 13 14 . 9 12 24 12 5 . 261 Missed 259 | . 20 49 3 . 2 . 2 21 1 7 . . 1 . . 11 . 7 8 . 3 5 16 5 4 . 94 Hits 498 | . 73 190 1 . 1 . 3 10 1 2 . . 1 . . 8 . 6 6 . 6 7 8 7 1 . 167 Projectile 498 | . 73 190 1 . 1 . 3 10 1 2 . . 1 . . 8 . 6 6 . 6 7 8 7 1 . 167 AOE 10 | . . . . . . . . . . . . . . . . . . . . . . . . . . . 10 Critical Strikes 19 | . 1 5 . . . . . . . . . . . . . . . . . . . . . . . . 13 Damage Taken 9944 | . 1013 2236 12 . 17 . 140 107 20 55 . . 29 . . 170 . 163 91 . 152 458 183 150 29 . 4919 Core 2294 | . 154 288 . . 17 . 47 20 20 . . . . . . 22 . 19 . . . 24 52 . . . 1631 Absorbed by Shields . | . . . . . . . . . . . . . . . . . . . . . . . . . . . . Redirected to Shielding 213 | . . . . . . . . . . . . . . . . . . 15 41 . 22 47 43 45 . . . Core Remaining (%) 83 | 100 38 28 100 . . . . 88 . . . . 97 . . . . 95 . . 91 . 94 . 100 . . Volleys Fired 249 | . 78 150 . . . . . . . . . . . . . . . . . . 1 . . . . . 20 Largest 2 | . 2 2 . . . . . . . . . . . . . . . . . . 1 . . . . . 2 Hottest 240 | . 90 90 . . . . . . . . . . . . . . . . . . 10 . . . . . 240 Shots Fired 444 | . 143 278 . . . . . . . . . . . . . . . . . . 1 . . . . . 22 Gun 421 | . 143 278 . . . . . . . . . . . . . . . . . . . . . . . . . Cannon 22 | . . . . . . . . . . . . . . . . . . . . . . . . . . . 22 Launcher . | . . . . . . . . . . . . . . . . . . . . . . . . . . . . Special 1 | . . . . . . . . . . . . . . . . . . . . . 1 . . . . . . Kinetic 144 | . . 144 . . . . . . . . . . . . . . . . . . . . . . . . . Thermal 299 | . 143 134 . . . . . . . . . . . . . . . . . . . . . . . . 22 Explosive . | . . . . . . . . . . . . . . . . . . . . . . . . . . . . Electromagnetic . | . . . . . . . . . . . . . . . . . . . . . . . . . . . . Robot Hit Streak 15 | . 8 15 . . . . . . . . . . . . . . . . . . 8 . . . . . 10 Robot Miss Streak 7 | . 7 7 . . . . . . . . . . . . . . . . . . . . . . . . 1 Penetration Max . | . . . . . . . . . . . . . . . . . . . . . . . . . . . . Secondary Targets 7 | . 1 6 . . . . . . . . . . . . . . . . . . . . . . . . . Max Gunslinging Chain 1 | . 1 1 . . . . . . . . . . . . . . . . . . . . . . . . . Shots Hit Robots 314 | . 94 187 . 3 . . 1 . . . . . . . . . 3 . . . 1 2 . 1 3 . 19 Core Hits 129 | . 40 72 . 1 . . . . . . . . . . . . 1 . . . . 2 . 1 2 . 10 Critical Kills . | . . . . . . . . . . . . . . . . . . . . . . . . . . . . Critical Parts Destroyed . | . . . . . . . . . . . . . . . . . . . . . . . . . . . . Critical Strikes 8 | . . 7 . . . . . . . . . . . . . . . . . . . 1 . . . . . Burn 7 | . . 7 . . . . . . . . . . . . . . . . . . . . . . . . . Impale 1 | . . . . . . . . . . . . . . . . . . . . . . 1 . . . . . Melee Attacks 142 | . . . 1 3 . . 6 . 10 . . . . 12 . . 3 . 8 . 52 12 8 20 3 2 2 Impact . | . . . . . . . . . . . . . . . . . . . . . . . . . . . . Slashing 19 | . . . 1 2 . . 6 . 10 . . . . . . . . . . . . . . . . . . Piercing 121 | . . . . . . . . . . . . . . 11 . . 3 . 8 . 52 12 8 20 3 2 2 Sneak Attacks 7 | . . . . 1 . . 1 . . . . . . . . . . . . . . 1 . 1 3 . . Combat Hostiles . | . . . . . . . . . . . . . . . . . . . . . . . . . . . . Follow-up Attacks . | . . . . . . . . . . . . . . . . . . . . . . . . . . . . Damage Inflicted 5720 | . 1060 2564 . 107 . . 97 . . . . . . . . . 182 . . . . 81 . 150 330 . 1149 Guns 3624 | . 1060 2564 . . . . . . . . . . . . . . . . . . . . . . . . . Cannons 870 | . . . . . . . . . . . . . . . . . . . . . . . . . . . 870 Explosions 240 | . . . . . . . . . . . . . . . . . . . . . . . . . . . 240 Melee 986 | . . . . 107 . . 97 . . . . . . . . . 182 . . . . 81 . 150 330 . 39 Ramming . | . . . . . . . . . . . . . . . . . . . . . . . . . . . . Kinetic 1470 | . . 1470 . . . . . . . . . . . . . . . . . . . . . . . . . Thermal 3264 | . 1060 1094 . . . . . . . . . . . . . . . . . . . . . . . . 1110 Explosive . | . . . . . . . . . . . . . . . . . . . . . . . . . . . . Electromagnetic . | . . . . . . . . . . . . . . . . . . . . . . . . . . . . Impact . | . . . . . . . . . . . . . . . . . . . . . . . . . . . . Slashing 204 | . . . . 107 . . 97 . . . . . . . . . . . . . . . . . . . . Piercing 782 | . . . . . . . . . . . . . . . . . 182 . . . . 81 . 150 330 . 39 Highest Corruption 17 | . . . . . . . . . . . . . . 1 1 1 1 1 . . . 12 17 . . . 12 Average Corruption 3 | . . . . . . . . . . . . . . 1 1 1 1 1 . . . 12 13 . . . 3 Corruption Purged . | . . . . . . . . . . . . . . . . . . . . . . . . . . . . Corruption Blocked . | . . . . . . . . . . . . . . . . . . . . . . . . . . . . Effects 10 | . . . . . . . . . . . . . . . . 2 . . . . . . 7 . . . 1 Message Errors 3 | . . . . . . . . . . . . . . . . . . . . . . . 2 . . . 1 Matter Fused 2 | . . . . . . . . . . . . . . . . . . . . . . . 2 . . . . Heat Flow Errors 1 | . . . . . . . . . . . . . . . . . . . . . . . 1 . . . . Energy Discharges 1 | . . . . . . . . . . . . . . . . 1 . . . . . . . . . . . Alerts 1 | . . . . . . . . . . . . . . . . 1 . . . . . . . . . . . Misdirections 2 | . . . . . . . . . . . . . . . . . . . . . . . 2 . . . . Overload Shots . | . . . . . . . . . . . . . . . . . . . . . . . . . . . . Overflow Damage 137 | . . . . 16 . . . . . . . . . . . . 60 . . . . . . . 61 . . Projectiles . | . . . . . . . . . . . . . . . . . . . . . . . . . . . . Explosions . | . . . . . . . . . . . . . . . . . . . . . . . . . . . . Melee 137 | . . . . 16 . . . . . . . . . . . . 60 . . . . . . . 61 . . Knockbacks . | . . . . . . . . . . . . . . . . . . . . . . . . . . . . Impact . | . . . . . . . . . . . . . . . . . . . . . . . . . . . . Kinetic . | . . . . . . . . . . . . . . . . . . . . . . . . . . . . Secondary . | . . . . . . . . . . . . . . . . . . . . . . . . . . . . Self-Inflicted Damage 8 | . . . . . . . . . . . . . . . . . . . . . . . . . . . 8 Shots 1 | . . . . . . . . . . . . . . . . . . . . . . . . . . . 1 Rammed 1 | . . . . . . . . . . . . . . . . . . . . . . 1 . . . . . Targets Rammed 1 | . . . . . . . . . . . . . . . . . . . . . . 1 . . . . . Kicked . | . . . . . . . . . . . . . . . . . . . . . . . . . . . . Crushed . | . . . . . . . . . . . . . . . . . . . . . . . . . . . . Highest Temperature 315 | . 291 315 . . . . . 9 . 12 2 2 2 . . 8 . . . . . . 187 . . . 124 Average Temperature 60 | . 77 63 . . . . . 9 . 2 2 2 2 . . 6 . . . . . . 88 . . . 71 Received Heat Transfer 1368 | . 501 648 . . . . . 18 9 12 . . . . . 45 . 18 9 . . 27 9 18 . . 54 Effects 2 | . . 2 . . . . . . . . . . . . . . . . . . . . . . . . . Shutdowns 1 | . . 1 . . . . . . . . . . . . . . . . . . . . . . . . . Energy Bleed 1 | . . 1 . . . . . . . . . . . . . . . . . . . . . . . . . Siege Activations . | . . . . . . . . . . . . . . . . . . . . . . . . . . . . Martial Activations . | . . . . . . . . . . . . . . . . . . . . . . . . . . . . Shielding Activations . | . . . . . . . . . . . . . . . . . . . . . . . . . . . . Robots Disrupted . | . . . . . . . . . . . . . . . . . . . . . . . . . . . . Combat Hostiles . | . . . . . . . . . . . . . . . . . . . . . . . . . . . . Robots Corrupted . | . . . . . . . . . . . . . . . . . . . . . . . . . . . . Combat Hostiles . | . . . . . . . . . . . . . . . . . . . . . . . . . . . . Parts Fried . | . . . . . . . . . . . . . . . . . . . . . . . . . . . . Impact Corruptions . | . . . . . . . . . . . . . . . . . . . . . . . . . . . . Robots Melted . | . . . . . . . . . . . . . . . . . . . . . . . . . . . . Combat Hostiles . | . . . . . . . . . . . . . . . . . . . . . . . . . . . . Parts Melted 17 | . 3 12 . . . . . . . . . . . . . . . . . . . . . . . . 2 Heat Transferred 6740 | . 2447 3466 . . . . . . . . . . . . . . . . . . . . . . . . 827 Parts Sabotaged . | . . . . . . . . . . . . . . . . . . . . . . . . . . . . Parts Stolen . | . . . . . . . . . . . . . . . . . . . . . . . . . . . . Parts Stripped . | . . . . . . . . . . . . . . . . . . . . . . . . . . . . Power Chain Reactions . | . . . . . . . . . . . . . . . . . . . . . . . . . . . . Alert | -11 -10 -9 -8 -7 -7 -7 -7 -6 -6 -6 -6 -6 -5 -5 -5 -5 -5 -4 -4 -4 -4 -3 -3 -2 -2 -1 -1 ------- Run | Yrd Mat Mat Mat Fac Low Low Dat Pro Fac Low Low Zio Pro Fac Upp Upp Zhi Pro Fac Arm Lab Res Tes Res Qua Acc Com Maximum Alert Level 2 | . . 2 . . . . . . . . . . . . . . . . . . . . . . . . . Low Security (%) 71 | 100 100 27 100 100 . . . . 100 . . . . 100 . . . . 100 100 . 100 100 100 100 100 100 Level 1 24 | . . 60 . . . . . . . . . . . . . . . . . . . . . . . . . Level 2 4 | . . 11 . . . . . . . . . . . . . . . . . . . . . . . . . Level 3 . | . . . . . . . . . . . . . . . . . . . . . . . . . . . . Level 4 . | . . . . . . . . . . . . . . . . . . . . . . . . . . . . Level 5 . | . . . . . . . . . . . . . . . . . . . . . . . . . . . . High Security . | . . . . . . . . . . . . . . . . . . . . . . . . . . . . Max Security . | . . . . . . . . . . . . . . . . . . . . . . . . . . . . Peak Influence 420 | . 141 420 170 77 . . . . 19 . . . . 15 . . . . 47 17 . 114 34 187 110 73 153 Initial 155 | . . 17 155 77 . . . . 12 . . . . . . . . . . 17 . . . 9 105 65 20 Average 139 | . 46 281 131 50 . . . . 5 . . . . 1 . . . . 15 17 . 26 15 65 105 55 55 Influence Increases 2893 | . 496 1042 135 84 60 . . 60 28 15 . . . 29 . 30 10 . 65 . . 173 58 248 15 18 327 Destroy 0b10 Robot/C 1120 | . 320 600 . . . . . . . . . . . . . . . . . . . . . . . . 200 Destroy 0b10 Robot/NC 135 | . 25 70 . 5 . . . . . . . . . . . . 10 . . . . 5 . 5 15 . . Destroy Leader 282 | . 70 182 . . . . . . . . . . . . . . . . . . . . . . . . 30 Successful Hack 156 | . 6 6 . 64 . . . . 19 . . . . . . . . . 6 . . 29 14 . . 12 . Disable Machine 90 | . . . 15 . . . . . . . . . . 15 . . . . 15 . . . 15 15 . . 15 Destroy Structure 120 | . . 4 . . . . . . 9 . . . . 14 . . . . 14 . . 4 14 33 . 6 22 Partial Spotted 240 | . . . 45 15 . . . . . . . . . . . . . . 30 . . 60 15 60 . . 15 Lose Combat Pursuer 750 | . 75 180 75 . 60 . . 60 . 15 . . . . . 30 . . . . . 75 . 135 . . 45 Influence Decreases 2825 | . 454 716 333 193 74 47 . 40 47 1 15 . . 27 2 30 10 . 28 20 17 173 40 79 92 95 292 Entered New Map 566 | . . 25 213 93 24 10 . . 8 1 4 . . . 2 . . . . 20 17 . . 9 82 45 13 Time Decay 1688 | . 404 581 120 100 50 37 . 30 24 . 11 . . 27 . 20 10 . 18 . . 50 40 60 10 30 66 Lost Part 422 | . 50 110 . . . . . 10 . . . . . . . 10 . . 10 . . 9 . 10 . . 213 Lost Ally 20 | . . . . . . . . . . . . . . . . . . . . . . . . . . 20 . Purge Threat 129 | . . . . . . . . . 15 . . . . . . . . . . . . 114 . . . . . Squads Dispatched 21 | . 4 4 1 2 . . . . . . . . . 1 . . . . . . . 4 1 . . . 4 Investigation 5 | . 1 . 1 . . . . . . . . . . 1 . . . . . . . 1 . . . . 1 Extermination 4 | . . . . 1 . . . . . . . . . . . . . . . . . 1 1 . . . 1 Reinforcement 12 | . 3 4 . 1 . . . . . . . . . . . . . . . . . 2 . . . . 2 Assault . | . . . . . . . . . . . . . . . . . . . . . . . . . . . . Garrison . | . . . . . . . . . . . . . . . . . . . . . . . . . . . . Intercept . | . . . . . . . . . . . . . . . . . . . . . . . . . . . . Searches Triggered . | . . . . . . . . . . . . . . . . . . . . . . . . . . . . Construction Impeded . | . . . . . . . . . . . . . . . . . . . . . . . . . . . . Haulers Reinforced . | . . . . . . . . . . . . . . . . . . . . . . . . . . . . Active Scanning Responses . | . . . . . . . . . . . . . . . . . . . . . . . . . . . . Cargo Convoy Interrupts . | . . . . . . . . . . . . . . . . . . . . . . . . . . . . Stealth | -11 -10 -9 -8 -7 -7 -7 -7 -6 -6 -6 -6 -6 -5 -5 -5 -5 -5 -4 -4 -4 -4 -3 -3 -2 -2 -1 -1 --------- Run | Yrd Mat Mat Mat Fac Low Low Dat Pro Fac Low Low Zio Pro Fac Upp Upp Zhi Pro Fac Arm Lab Res Tes Res Qua Acc Com Distress Signals 17 | . 4 6 2 1 . . . . . . . . . 1 . . . . 1 . . . . 1 . . 1 Communications Jammed . | . . . . . . . . . . . . . . . . . . . . . . . . . . . . Distress Signals . | . . . . . . . . . . . . . . . . . . . . . . . . . . . . Times Spotted 241 | . 36 72 10 5 7 . 4 7 2 1 . . 4 3 . 11 . 7 7 . 1 10 10 12 6 . 26 Peak Tracking Total 17 | . 5 8 8 4 4 . 4 4 2 1 . . 11 3 . 9 . 5 10 . 1 8 9 8 6 . 17 Tactical Retreats 26 | . 5 7 3 . 3 . . 1 . 1 . . . . . 1 . . . . . 1 . 2 . . 2 Traps | -11 -10 -9 -8 -7 -7 -7 -7 -6 -6 -6 -6 -6 -5 -5 -5 -5 -5 -4 -4 -4 -4 -3 -3 -2 -2 -1 -1 ------- Run | Yrd Mat Mat Mat Fac Low Low Dat Pro Fac Low Low Zio Pro Fac Upp Upp Zhi Pro Fac Arm Lab Res Tes Res Qua Acc Com Traps Triggered 9 | . 2 2 1 . . . . . . . . . . 1 . . . . . . . . 1 2 . . . Indirectly . | . . . . . . . . . . . . . . . . . . . . . . . . . . . . Trap Hack Attempts . | . . . . . . . . . . . . . . . . . . . . . . . . . . . . Triggered . | . . . . . . . . . . . . . . . . . . . . . . . . . . . . Disarmed . | . . . . . . . . . . . . . . . . . . . . . . . . . . . . Reprogrammed . | . . . . . . . . . . . . . . . . . . . . . . . . . . . . Reused . | . . . . . . . . . . . . . . . . . . . . . . . . . . . . Traps Extracted . | . . . . . . . . . . . . . . . . . . . . . . . . . . . . Installed . | . . . . . . . . . . . . . . . . . . . . . . . . . . . . Triggered . | . . . . . . . . . . . . . . . . . . . . . . . . . . . . Machines | -11 -10 -9 -8 -7 -7 -7 -7 -6 -6 -6 -6 -6 -5 -5 -5 -5 -5 -4 -4 -4 -4 -3 -3 -2 -2 -1 -1 ---------- Run | Yrd Mat Mat Mat Fac Low Low Dat Pro Fac Low Low Zio Pro Fac Upp Upp Zhi Pro Fac Arm Lab Res Tes Res Qua Acc Com Machines Disabled 8 | . . . 1 . . . . . . . . . . 1 . . . . 1 . 2 . 1 1 . . 1 Max in Single Turn 1 | . . . 1 . . . . . . . . . . 1 . . . . 1 . 1 . 1 1 . . 1 Garrison Access 3 | . . . . 1 . . . . 1 . . . . 1 . . . . . . . . . . . . . Machines Repaired . | . . . . . . . . . . . . . . . . . . . . . . . . . . . . Machines Dismantled . | . . . . . . . . . . . . . . . . . . . . . . . . . . . . Machines Sabotaged . | . . . . . . . . . . . . . . . . . . . . . . . . . . . . Overloaded Fab Kills . | . . . . . . . . . . . . . . . . . . . . . . . . . . . . Hacking | -11 -10 -9 -8 -7 -7 -7 -7 -6 -6 -6 -6 -6 -5 -5 -5 -5 -5 -4 -4 -4 -4 -3 -3 -2 -2 -1 -1 --------- Run | Yrd Mat Mat Mat Fac Low Low Dat Pro Fac Low Low Zio Pro Fac Upp Upp Zhi Pro Fac Arm Lab Res Tes Res Qua Acc Com Machines Accessed 47 | . 1 4 1 7 . 1 3 . 5 . . . . 5 . 1 3 . 2 . . 5 5 . . 3 1 Terminals 28 | . 1 3 1 3 . 1 . . 3 . . . . 3 . . . . 1 . . 4 4 . . 3 1 Fabricators 6 | . . . . 2 . . . . 1 . . . . 1 . . . . 1 . . 1 . . . . . Repair Stations 1 | . . . . . . . . . . . . . . . . . . . . . . . 1 . . . . Recycling Units . | . . . . . . . . . . . . . . . . . . . . . . . . . . . . Scanalyzers 2 | . . 1 . 1 . . . . . . . . . . . . . . . . . . . . . . . Garrison Access 3 | . . . . 1 . . . . 1 . . . . 1 . . . . . . . . . . . . . Total Hacks 117 | . 2 8 2 14 . 1 22 . 15 . . . . 10 . 1 12 . 5 . . 11 7 . . 4 3 Successful 75 | . 1 2 . 11 . 1 22 . 6 . . . . 8 . 1 12 . 1 . . 6 1 . . 3 . Failed 42 | . 1 6 2 3 . . . . 9 . . . . 2 . . . . 4 . . 5 6 . . 1 3 Catastrophic 6 | . 1 . . . . . . . 1 . . . . 1 . . . . . . . 1 2 . . . . Database Lockouts . | . . . . . . . . . . . . . . . . . . . . . . . . . . . . Manual 56 | . 2 7 2 7 . . . . 13 . . . . 7 . . . . 5 . . 8 5 . . . . Terminals 59 | . 2 7 2 6 . 1 . . 12 . . . . 6 . . . . 2 . . 9 5 . . 4 3 Fabricators 12 | . . . . 3 . . . . 1 . . . . 3 . . . . 3 . . 2 . . . . . Repair Stations 2 | . . . . . . . . . . . . . . . . . . . . . . . 2 . . . . Recycling Units . | . . . . . . . . . . . . . . . . . . . . . . . . . . . . Scanalyzers 5 | . . 1 . 4 . . . . . . . . . . . . . . . . . . . . . . . Garrison Access 4 | . . . . 1 . . . . 2 . . . . 1 . . . . . . . . . . . . . Terminal Hacks 54 | . . . . 3 . 1 22 . 4 . . . . 4 . 1 12 . . . . 4 . . . 3 . Record 7 | . . . . . . 1 2 . . . . . . . . . 4 . . . . . . . . . . Part Schematic 18 | . . . . . . . 11 . 1 . . . . 1 . . 4 . . . . 1 . . . . . Robot Schematic 6 | . . . . . . . 6 . . . . . . . . . . . . . . . . . . . . Prototype ID Bank 7 | . . . . . . . 3 . . . . . . . . . 4 . . . . . . . . . . Open Door 4 | . . . . . . . . . . . . . . . . 1 . . . . . . . . . 3 . Branch Access Points 4 | . . . . 1 . . . . 1 . . . . 1 . . . . . . . 1 . . . . . Terminal Index 2 | . . . . 1 . . . . 1 . . . . . . . . . . . . . . . . . . Unreport Threat 3 | . . . . . . . . . 1 . . . . 1 . . . . . . . 1 . . . . . Recall Investigation 1 | . . . . . . . . . . . . . . 1 . . . . . . . . . . . . . Registered Components 2 | . . . . 1 . . . . . . . . . . . . . . . . . 1 . . . . . Fabricator Hacks 4 | . . . . . . . . . . . . . . 2 . . . . . . . 2 . . . . . Load Schematic 2 | . . . . . . . . . . . . . . 1 . . . . . . . 1 . . . . . Build 2 | . . . . . . . . . . . . . . 1 . . . . . . . 1 . . . . . Repair Station Hacks 1 | . . . . . . . . . . . . . . . . . . . . . . . 1 . . . . Refit 1 | . . . . . . . . . . . . . . . . . . . . . . . 1 . . . . Recycling Unit Hacks . | . . . . . . . . . . . . . . . . . . . . . . . . . . . . Scanalyzer 4 | . . . . 4 . . . . . . . . . . . . . . . . . . . . . . . Insert Component 2 | . . . . 2 . . . . . . . . . . . . . . . . . . . . . . . Analyze 2 | . . . . 2 . . . . . . . . . . . . . . . . . . . . . . . Garrison Access Hacks 3 | . . . . 1 . . . . 1 . . . . 1 . . . . . . . . . . . . . Seal Access 3 | . . . . 1 . . . . 1 . . . . 1 . . . . . . . . . . . . . Unauthorized Hacks 9 | . 1 2 . 3 . . . . 1 . . . . 1 . . . . 1 . . . . . . . . Terminals 4 | . 1 2 . 1 . . . . . . . . . . . . . . . . . . . . . . . Assimilate 1 | . . 1 . . . . . . . . . . . . . . . . . . . . . . . . . Operators 3 | . 1 1 . 1 . . . . . . . . . . . . . . . . . . . . . . . Fabricators 5 | . . . . 2 . . . . 1 . . . . 1 . . . . 1 . . . . . . . . Fabnet 5 | . . . . 2 . . . . 1 . . . . 1 . . . . 1 . . . . . . . . Repair Stations . | . . . . . . . . . . . . . . . . . . . . . . . . . . . . Recycling Units . | . . . . . . . . . . . . . . . . . . . . . . . . . . . . Scanalyzers . | . . . . . . . . . . . . . . . . . . . . . . . . . . . . Garrison Access . | . . . . . . . . . . . . . . . . . . . . . . . . . . . . Data Cores Recovered 1 | . . 1 . . . . . . . . . . . . . . . . . . . . . . . . . Used . | . . . . . . . . . . . . . . . . . . . . . . . . . . . . Hacking Detections 30 | . . 4 1 2 . 1 . . 3 . . . . 4 . . . . 2 . . 5 5 . . 2 1 Full Trace Events 3 | . . . . . . . . . . . . . . 1 . . . . . . . 1 . . . . 1 Feedback Events . | . . . . . . . . . . . . . . . . . . . . . . . . . . . . Feedback Blocked . | . . . . . . . . . . . . . . . . . . . . . . . . . . . . Robot Schematics Acquired 6 | . . . . . . . 6 . . . . . . . . . . . . . . . . . . . . Robots Built . | . . . . . . . . . . . . . . . . . . . . . . . . . . . . Authchips . | . . . . . . . . . . . . . . . . . . . . . . . . . . . . Time . | . . . . . . . . . . . . . . . . . . . . . . . . . . . . Total Robot Build Rating . | . . . . . . . . . . . . . . . . . . . . . . . . . . . . Part Schematics Acquired 20 | . . . . 2 . . 11 . 1 . . . . 1 . . 4 . . . . 1 . . . . . Parts Built 2 | . . . . . . . . . . . . . . 2 . . . . . . . . . . . . . Authchips . | . . . . . . . . . . . . . . . . . . . . . . . . . . . . Time 282 | . . . . . . . . . . . . . . 95 . . . . . . . 187 . . . . . Total Part Build Rating 10 | . . . . . . . . . . . . . . 10 . . . . . . . . . . . . . Parts Repaired . | . . . . . . . . . . . . . . . . . . . . . . . . . . . . Time . | . . . . . . . . . . . . . . . . . . . . . . . . . . . . Parts Recycled . | . . . . . . . . . . . . . . . . . . . . . . . . . . . . Recycled Matter . | . . . . . . . . . . . . . . . . . . . . . . . . . . . . Retrieved Matter . | . . . . . . . . . . . . . . . . . . . . . . . . . . . . Retrieved Components . | . . . . . . . . . . . . . . . . . . . . . . . . . . . . Parts Scanalyzed 2 | . . . . 2 . . . . . . . . . . . . . . . . . . . . . . . Part Schematics Acquired 2 | . . . . 2 . . . . . . . . . . . . . . . . . . . . . . . Parts Damaged . | . . . . . . . . . . . . . . . . . . . . . . . . . . . . Bothacking | -11 -10 -9 -8 -7 -7 -7 -7 -6 -6 -6 -6 -6 -5 -5 -5 -5 -5 -4 -4 -4 -4 -3 -3 -2 -2 -1 -1 ------------ Run | Yrd Mat Mat Mat Fac Low Low Dat Pro Fac Low Low Zio Pro Fac Upp Upp Zhi Pro Fac Arm Lab Res Tes Res Qua Acc Com Used RIF Installer . | . . . . . . . . . . . . . . . . . . . . . . . . . . . . Robots Hacked 5 | . . . . 1 . . . 1 . . . . . . . 1 . 1 . . 1 . . . . . . Non-combat 1 | . . . . 1 . . . . . . . . . . . . . . . . . . . . . . . Combat 3 | . . . . . . . . 1 . . . . . . . 1 . 1 . . . . . . . . . Robot Hacks Applied 1 | . . . . 1 . . . . . . . . . . . . . . . . . . . . . . . find_chute 1 | . . . . 1 . . . . . . . . . . . . . . . . . . . . . . . Manual 1 | . . . . . . . . . . . . . . . . . . . . . 1 . . . . . . Relay Couplers Released . | . . . . . . . . . . . . . . . . . . . . . . . . . . . . Fabnet Peak Effective % 6 | . . . . . . . . 6 6 6 6 6 5 5 5 5 5 4 4 4 4 4 4 1 1 . . Autooverrided 3 | . . . . . . . . 1 . . . . . . . 1 . 1 . . . . . . . . . Robots Rewired . | . . . . . . . . . . . . . . . . . . . . . . . . . . . . Allies Hacked . | . . . . . . . . . . . . . . . . . . . . . . . . . . . . Hacks Repelled . | . . . . . . . . . . . . . . . . . . . . . . . . . . . . Allies | -11 -10 -9 -8 -7 -7 -7 -7 -6 -6 -6 -6 -6 -5 -5 -5 -5 -5 -4 -4 -4 -4 -3 -3 -2 -2 -1 -1 -------- Run | Yrd Mat Mat Mat Fac Low Low Dat Pro Fac Low Low Zio Pro Fac Upp Upp Zhi Pro Fac Arm Lab Res Tes Res Qua Acc Com Total Allies 6 | . . . . . . . . 1 . . . . . . . 1 . 1 . . . . . . . 3 . Largest Group 3 | . . . . . . . . 1 . . . . . . . 1 . 1 . . . . . . . 3 . Highest-Rated Group 379 | . . . . . . . . 29 . . . . . . . 12 . 116 . . . . . . . 379 . Highest-Rated Ally 135 | . . . . . . . . 29 . . . . . . . 12 . 116 . . . . . . . 135 . Total Orders . | . . . . . . . . . . . . . . . . . . . . . . . . . . . . Ally Attacks 12 | . . . . . . . . . . . . . . . . 2 . . . . . . . . . 10 . Total Damage 103 | . . . . . . . . . . . . . . . . 12 . . . . . . . . . 91 . Kills . | . . . . . . . . . . . . . . . . . . . . . . . . . . . . Allies Corrupted 1 | . . . . . . . . . . . . . . . . . . . . . . . . . . 1 . Allies Melted . | . . . . . . . . . . . . . . . . . . . . . . . . . . . . Intel | -11 -10 -9 -8 -7 -7 -7 -7 -6 -6 -6 -6 -6 -5 -5 -5 -5 -5 -4 -4 -4 -4 -3 -3 -2 -2 -1 -1 ------- Run | Yrd Mat Mat Mat Fac Low Low Dat Pro Fac Low Low Zio Pro Fac Upp Upp Zhi Pro Fac Arm Lab Res Tes Res Qua Acc Com Active Infowar (turns) 2344 | . . . 123 189 111 151 58 79 123 133 91 217 50 177 76 90 49 70 14 2 226 . . 82 39 73 121 Sensors 2344 | . . . 123 189 111 151 58 79 123 133 91 217 50 177 76 90 49 70 14 2 226 . . 82 39 73 121 Cloaking 2 | . . . . . . . . . . . . . . . . . . . . . . . . . 2 . . Robot Analysis Total 151 | . . . . . . . 151 . . . . . . . . . . . . . . . . . . . . Derelict Logs Recovered 11 | . . . . . . 1 . 1 . 1 2 1 2 . 1 2 . . . . . . . . . . . Drone Launches . | . . . . . . . . . . . . . . . . . . . . . . . . . . . . Drone Recoveries . | . . . . . . . . . . . . . . . . . . . . . . . . . . . . Exploration | -11 -10 -9 -8 -7 -7 -7 -7 -6 -6 -6 -6 -6 -5 -5 -5 -5 -5 -4 -4 -4 -4 -3 -3 -2 -2 -1 -1 ------------- Run | Yrd Mat Mat Mat Fac Low Low Dat Pro Fac Low Low Zio Pro Fac Upp Upp Zhi Pro Fac Arm Lab Res Tes Res Qua Acc Com Turns Passed 6682 | 78 1534 2029 247 201 111 151 58 79 123 133 91 217 50 177 76 90 49 117 78 2 335 118 137 133 39 73 156 Spaces Moved 9611 | 50 620 861 280 534 335 390 113 247 322 510 373 839 209 362 256 331 146 369 241 2 528 386 419 349 133 170 236 Core 41 | 14 . . . . . . . . . . . . . . . . . . . . . . . . . . 27 Treads 1282 | 36 456 728 55 . . . . . . . . . . . . . . . . . . . . . . . 7 Legs 63 | . 63 . . . . . . . . . . . . . . . . . . . . . . . . . . Wheels 234 | . 101 133 . . . . . . . . . . . . . . . . . . . . . . . . . Hover . | . . . . . . . . . . . . . . . . . . . . . . . . . . . . Flight 7991 | . . . 225 534 335 390 113 247 322 510 373 839 209 362 256 331 146 369 241 2 528 386 419 349 133 170 202 Fastest Speed 17 | 50 110 110 26 26 26 26 26 26 23 23 24 24 24 24 24 24 24 24 24 24 20 17 17 20 20 20 20 Average Speed 48 | 129 191 160 53 26 26 26 26 26 24 23 24 24 24 24 24 24 24 24 24 24 21 18 19 20 20 20 29 Slowest Speed 260 | 160 260 240 240 26 26 26 26 26 26 24 24 24 24 24 24 24 24 24 24 24 101 20 23 22 20 20 181 Overloaded Moves . | . . . . . . . . . . . . . . . . . . . . . . . . . . . . Propulsion Burnouts . | . . . . . . . . . . . . . . . . . . . . . . . . . . . . Robots Hopped 62 | . . . 5 6 . 1 1 . 2 . . . . 5 2 4 . . 3 . . 10 14 4 . . 5 Potential Cave-ins 10 | . . . . . . . . . . . . . . . . . . . . . . 8 . 2 . . . Cave-ins Triggered 1 | . . . . . . . . . . . . . . . . . . . . . . 1 . . . . . Teleports 2 | . . . . . . . . . . . . . . . . . . . . 1 1 . . . . . . Exploration Rate (%) 42 | 3 80 68 24 18 61 61 77 55 11 68 57 84 49 11 46 53 60 64 10 1 96 20 57 17 18 6 12 Regions Visited 27 Branch Regions 17 Pre-discovered Areas 37 | . . . . . . 1 29 1 . . . 2 . . . 1 3 . . . . . . . . . . Known Exits Taken 24 | . . . 1 1 1 1 1 1 1 1 1 1 1 1 1 1 1 1 1 1 1 1 1 1 1 1 . Unknown Exits Taken 3 | 1 1 1 . . . . . . . . . . . . . . . . . . . . . . . . . Scrap Searched 21 | . . . . . 2 1 . 1 . 3 6 4 1 . 1 . . 2 . . . . . . . . . Spaces Dug 60 | . . . . . . . 1 . 10 . . . . 7 . . . . 7 . 2 10 7 13 . 2 1 Terrain Destroyed 66 | . . . . . . . 1 . 10 . . . . 7 . . . . 7 . 2 10 7 13 . 2 7 Melee 60 | . . . . . . . 1 . 10 . . . . 7 . . . . 7 . 2 10 7 13 . 2 1 Projectile 4 | . . . . . . . . . . . . . . . . . . . . . . . . . . . 4 AOE 2 | . . . . . . . . . . . . . . . . . . . . . . . . . . . 2 Terrain Rammed . | . . . . . . . . . . . . . . . . . . . . . . . . . . . . Walls Destroyed . | . . . . . . . . . . . . . . . . . . . . . . . . . . . . Machines Disabled . | . . . . . . . . . . . . . . . . . . . . . . . . . . . . Actions | -11 -10 -9 -8 -7 -7 -7 -7 -6 -6 -6 -6 -6 -5 -5 -5 -5 -5 -4 -4 -4 -4 -3 -3 -2 -2 -1 -1 --------- Run | Yrd Mat Mat Mat Fac Low Low Dat Pro Fac Low Low Zio Pro Fac Upp Upp Zhi Pro Fac Arm Lab Res Tes Res Qua Acc Com Total 11000 | 64 824 1241 374 585 358 437 131 261 350 520 374 854 208 435 267 336 155 396 248 2 696 410 452 383 138 205 296 Wait 733 | . 94 173 59 47 22 49 9 12 9 4 . 10 . 60 14 8 . 27 . . 89 . 11 . . 24 12 Move 9465 | 49 619 860 271 521 334 387 110 246 317 509 372 838 208 352 251 323 145 368 234 1 527 365 391 340 132 169 226 Hop 57 | . . . 3 6 . 1 1 . 2 . . . . 4 2 3 . . 3 . . 10 13 4 . . 5 Pick Up 107 | 9 20 17 9 3 1 . 2 1 4 . 1 2 . 3 . . 4 . . . 9 5 8 3 . 4 2 Fast Attach 42 | . . 11 5 . . . . . 1 4 . 1 . . . . . 1 2 . 1 4 3 7 2 . . Attach 78 | 6 10 8 5 2 . . 1 2 . . . . . 3 . 2 2 . . 1 10 2 5 1 . 1 17 Detach 16 | . . . 1 . . . . . . . . . . . . . . . . . 2 2 1 . . 1 9 Swap 31 | . 1 10 3 2 . . . . 3 . . . . . . . 1 . . . 1 2 5 2 . 1 . Drop 79 | . 2 12 17 1 1 . 2 . 4 3 1 3 . 1 . . . . 1 . 4 7 7 6 1 3 3 Fire 249 | . 78 150 . . . . . . . . . . . . . . . . . . 1 . . . . . 20 Melee 142 | . . . 1 3 . . 6 . 10 . . . . 12 . . 3 . 8 . 52 12 8 20 3 2 2 Ram . | . . . . . . . . . . . . . . . . . . . . . . . . . . . . Kick . | . . . . . . . . . . . . . . . . . . . . . . . . . . . . Crush . | . . . . . . . . . . . . . . . . . . . . . . . . . . . . Escape Stasis 1 | . . . . . . . . . . . . . . . . . . . . . . 1 . . . . . Rewire . | . . . . . . . . . . . . . . . . . . . . . . . . . . . . Trap . | . . . . . . . . . . . . . . . . . . . . . . . . . . . . Miscellaneous . | . . . . . . . . . . . . . . . . . . . . . . . . . . . . Route ------- -11/Scrapyard -10/Materials (discovered 4 exits: *Mat x3 / [*Min]) -9/Materials (discovered 4 exits: *Mat / [*Min] / [*Sto x2]) -8/Materials -7/Factory (discovered 2 exits: *Low x2) -7/Lower Caves -7/Lower Caves (discovered 2 exits: *Fac / *Dat) -7/Data Miner -6/Proximity Caves -6/Factory (discovered 4 exits: *Low x2 / Ext x2) -6/Lower Caves -6/Lower Caves -6/Zion -5/Proximity Caves -5/Factory (discovered 3 exits: *Fac / *Upp x2) -5/Upper Caves -5/Upper Caves (discovered 2 exits: *Fac / *Zhi) -5/Zhirov -4/Proximity Caves -4/Factory -4/Armory -4/Lab -3/Research (discovered 3 exits: *Res / *Tes x2) -3/Testing -2/Research -2/Quarantine -1/Access (discovered 2 exits: Sur / *Com) -1/Command History --------- Turn | Location | Event 6 | -11/Scrapyard | Discovered new exit (range 16) 79 | -11/Scrapyard | Entered Materials 80 | -10/Materials | Met a group of wandering Federalists 305 | -10/Materials | Discovered new exit (range 10) 329 | -10/Materials | Build established: Mutant 554 | -10/Materials | Discovered new exit (range 9) 616 | -10/Materials | Lost 3 parts (1p1n1w) 964 | -10/Materials | Build established: Scavenger-Mutant 1091 | -10/Materials | Core integrity fell below 50% 1137 | -10/Materials | Discovered new exit (range 5) 1473 | -10/Materials | Discovered new exit (range 15) 1613 | -10/Materials | Entered another Materials area 1613 | -9/Materials | Evolved 2 slots: Propulsion x1, Utility x1 1707 | -9/Materials | Discovered new exit (range 7) 2217 | -9/Materials | Destroyed 7 combat bots 2247 | -9/Materials | Discovered new exit (range 16) 2255 | -9/Materials | Lost 7 parts (1p3n2u1w) 2303 | -9/Materials | Core integrity fell below 50% 2746 | -9/Materials | Discovered new exit (range 8) 2785 | -9/Materials | Discovered new exit (range 9) 3642 | -9/Materials | Entered another Materials area 3642 | -8/Materials | Evolved 2 slots: Propulsion x1, Utility x1 3863 | -8/Materials | Discovered new exit (range 16) 3889 | -8/Materials | Identified exit to Factory 3889 | -8/Materials | Entered Factory 3889 | -7/Factory | Evolved 2 slots: Utility x2 4024 | -7/Factory | Identified exit to Lower Caves 4090 | -7/Factory | Entered Lower Caves 4128 | -7/Lower Caves | Encountered a Warlord checkpoint 4193 | -7/Lower Caves | Build established: Hacker-Sprinter 4197 | -7/Lower Caves | Discovered new exit (range 15) 4201 | -7/Lower Caves | Identified exit to Lower Caves 4201 | -7/Lower Caves | Entered another Lower Caves area 4213 | -7/Lower Caves | Discovered new exit (range 12) 4232 | -7/Lower Caves | Learned location of Extension (-6) 4307 | -7/Lower Caves | Discovered new exit (range 7) 4351 | -7/Lower Caves | Identified exit to Data Miner 4352 | -7/Lower Caves | Entered Data Miner 4352 | -7/Data Miner | Discovered new exit (range 6) 4359 | -7/Data Miner | Met Data Miner 4366 | -7/Data Miner | Learned location of Section 7 (-2) 4366 | -7/Data Miner | Acquired the access code to Warlord's prototype stash 4368 | -7/Data Miner | Received God Mode back door access code from Data Miner 4383 | -7/Data Miner | Interfaced with the Data Conduit 4409 | -7/Data Miner | Identified exit to Proximity Caves 4410 | -7/Data Miner | Entered Proximity Caves 4427 | -6/Proximity Caves | Attracted the attention of an 0b10 checkpoint 4460 | -6/Proximity Caves | Lost 3 parts (1p2n) 4472 | -6/Proximity Caves | Spotted B-75 Beast 4488 | -6/Proximity Caves | Discovered new exit (range 5) 4489 | -6/Proximity Caves | Identified exit to Factory 4489 | -6/Proximity Caves | Entered Factory 4489 | -6/Factory | Evolved 2 slots: Propulsion x1, Utility x1 4490 | -6/Factory | Loaded intel: 333 machine locations 4505 | -6/Factory | Identified exit to Lower Caves 4505 | -6/Factory | Identified exit to Extension 4612 | -6/Factory | Entered Lower Caves 4617 | -6/Lower Caves | Spotted B-75 Beast 4665 | -6/Lower Caves | Encountered a Warlord checkpoint 4692 | -6/Lower Caves | Learned Factory stockpile data 4742 | -6/Lower Caves | Discovered new exit (range 14) 4745 | -6/Lower Caves | Identified exit to Lower Caves 4745 | -6/Lower Caves | Entered another Lower Caves area 4758 | -6/Lower Caves | Learned location of 1 exit from Factory 4773 | -6/Lower Caves | Learned Factory terminal intel 4834 | -6/Lower Caves | Discovered new exit (range 8) 4835 | -6/Lower Caves | Identified exit to Zion 4836 | -6/Lower Caves | Entered Zion 4849 | -6/Zion | Discovered new exit (range 8) 4855 | -6/Zion | Learned location of 1 exit from Lower Caves 4871 | -6/Zion | Learned Factory fabricator intel 4929 | -6/Zion | Acquired unknown access codes intercepted by a Zionite 5008 | -6/Zion | Met Imprinter 5052 | -6/Zion | Identified exit to Proximity Caves 5053 | -6/Zion | Entered Proximity Caves 5065 | -5/Proximity Caves | Learned Factory emergency access door positions 5093 | -5/Proximity Caves | Learned Factory terminal intel 5102 | -5/Proximity Caves | Attracted the attention of an 0b10 outpost 5102 | -5/Proximity Caves | Discovered new exit (range 5) 5103 | -5/Proximity Caves | Identified exit to Factory 5103 | -5/Proximity Caves | Entered Factory 5103 | -5/Factory | Evolved 2 slots: Utility x2 5104 | -5/Factory | Identified exit to Upper Caves 5107 | -5/Factory | Loaded intel: 269 machine locations 5108 | -5/Factory | Loaded intel: 26 terminal locations 5109 | -5/Factory | Loaded intel: 6 fabricator locations 5228 | -5/Factory | Fabricated Weapon Mount (x2) 5235 | -5/Factory | Discovered new exit (range 13) 5280 | -5/Factory | Entered Upper Caves 5286 | -5/Upper Caves | Encountered a Warlord checkpoint 5326 | -5/Upper Caves | Identified exit to Upper Caves 5356 | -5/Upper Caves | Entered another Upper Caves area 5358 | -5/Upper Caves | Discovered new exit (range 10) 5359 | -5/Upper Caves | Learned Factory stockpile data 5442 | -5/Upper Caves | Attracted the attention of an 0b10 checkpoint 5443 | -5/Upper Caves | Discovered new exit (range 10) 5444 | -5/Upper Caves | Identified exit to Zhirov 5446 | -5/Upper Caves | Entered Zhirov 5448 | -5/Zhirov | Discovered new exit (range 4) 5452 | -5/Zhirov | Met Zhirov 5459 | -5/Zhirov | Zhirov requested help retrieving the SGEMP Prototype 5462 | -5/Zhirov | Found Alien Artifact 5464 | -5/Zhirov | Identified Integrated Dissipator 5464 | -5/Zhirov | Installed Integrated Dissipator, increased core heat dissipation (+20) 5473 | -5/Zhirov | Lost 3 parts (1p1n1u) 5485 | -5/Zhirov | Found Alien Artifact 5495 | -5/Zhirov | Identified exit to Proximity Caves 5495 | -5/Zhirov | Entered Proximity Caves 5556 | -4/Proximity Caves | Spotted B-86 Titan 5612 | -4/Proximity Caves | Discovered new exit (range 3) 5612 | -4/Proximity Caves | Identified exit to Factory 5612 | -4/Proximity Caves | Entered Factory 5612 | -4/Factory | Evolved 2 slots: Propulsion x1, Utility x1 5614 | -4/Factory | Loaded intel: 330 machine locations 5615 | -4/Factory | Loaded intel: 26 terminal locations 5687 | -4/Factory | Discovered new exit (range 10) 5689 | -4/Factory | Identified exit to Armory 5690 | -4/Factory | Entered Armory 5691 | -4/Armory | Loaded intel: 77 machine locations 5691 | -4/Armory | Identified Transdimensional Reconstructor 5691 | -4/Armory | Warped through subspace to slip node 5691 | -4/Armory | Discovered new exit (range 1) 5691 | -4/Armory | Identified exit to Lab 5692 | -4/Armory | Entered Lab 5692 | -4/Lab | Discovered new exit (range 9) 5694 | -4/Lab | Identified exit to Research 5695 | -4/Lab | Hidden lab's door opened automatically 5695 | -4/Lab | Sensor layout match revealed 5696 | -4/Lab | Gained access to the hidden lab's interior 5703 | -4/Lab | Decrypted terminal 5734 | -4/Lab | Found Alien Artifact 5735 | -4/Lab | Identified Core Regenerator 5735 | -4/Lab | Used Core Regenerator, restored core integrity (+101) 5772 | -4/Lab | Found Integrated Dissipator 5774 | -4/Lab | Installed Integrated Dissipator, increased core heat dissipation (+20) 5818 | -4/Lab | Found Prototype Energy Cannon 5820 | -4/Lab | Identified Potential Cannon 5829 | -4/Lab | Found Prototype Hackware 5840 | -4/Lab | Detected by scanners 5879 | -4/Lab | Decrypted terminal 5890 | -4/Lab | Found Transdimensional Reconstructor 5891 | -4/Lab | Confronted by A5 5913 | -4/Lab | Warped through subspace 5936 | -4/Lab | Found Prototype Special Weapon 5937 | -4/Lab | Identified Gui. Remote Datajack 5940 | -4/Lab | Hacked A5 with code downloaded from Data Conduit 5943 | -4/Lab | Destroyed A5 5949 | -4/Lab | Decrypted terminal 6012 | -4/Lab | Found Prototype Device 6013 | -4/Lab | Identified AEGIS Remote Shield 6019 | -4/Lab | Found Potential Cannon 6026 | -4/Lab | Decrypted terminal 6027 | -4/Lab | Entered Research 6027 | -3/Research | Evolved 2 slots: Power x1, Propulsion x1 6027 | -3/Research | Identified Deep Network Scanner 6028 | -3/Research | Loaded intel: 92 machine locations 6030 | -3/Research | Identified exit to Testing 6078 | -3/Research | Spotted B-86 Titan 6092 | -3/Research | Spotted B-86 Titan 6097 | -3/Research | Found Exp. Targeting Computer 6098 | -3/Research | Found Exp. Targeting Computer 6112 | -3/Research | Discovered new exit (range 11) 6137 | -3/Research | Crushed by falling debris 6138 | -3/Research | System corruption reached 10% 6145 | -3/Research | Entered Testing 6146 | -3/Testing | Loaded intel: 52 machine locations 6171 | -3/Testing | Lost 5 parts (1p4u) 6211 | -3/Testing | Spotted Striker 6211 | -3/Testing | Spotted Striker 6221 | -3/Testing | Spotted Alpha 7 6222 | -3/Testing | Stole the SGEMP Prototype 6278 | -3/Testing | Discovered new exit (range 11) 6282 | -3/Testing | Identified exit to Research 6282 | -3/Testing | Entered Research 6282 | -2/Research | Evolved 2 slots: Propulsion x1, Utility x1 6283 | -2/Research | Loaded intel: 118 machine locations 6413 | -2/Research | Discovered new exit (range 14) 6413 | -2/Research | Spotted B-90 Cyclops 6415 | -2/Research | Identified exit to Quarantine 6415 | -2/Research | Entered Quarantine 6416 | -2/Quarantine | Loaded intel: 95 machine locations 6435 | -2/Quarantine | Build established: Sprinter 6435 | -2/Quarantine | Discovered new exit (range 10) 6454 | -2/Quarantine | Identified exit to Access 6454 | -2/Quarantine | Entered Access 6454 | -1/Access | Evolved 2 slots: Power x1, Weapon x1 6455 | -1/Access | Loaded intel: 123 machine locations 6455 | -1/Access | Delivered the SGEMP Prototype to Zhirov 6455 | -1/Access | Zhirov transferred Access data 6456 | -1/Access | Loaded intel: 123 machine locations 6456 | -1/Access | Loaded intel: 60 trap records 6456 | -1/Access | Identified exit to Surface 6456 | -1/Access | Discovered exit to Surface (range 165) 6456 | -1/Access | Identified exit to Command 6456 | -1/Access | Discovered exit to Command (range 71) 6527 | -1/Access | Entered Command 6528 | -1/Command | Loaded intel: 51 machine locations 6652 | -1/Command | Destroyed 10 combat bots 6655 | -1/Command | Spotted M Guard 6655 | -1/Command | Spotted M Guard 6655 | -1/Command | Spotted Combat Programmer 6656 | -1/Command | Spotted Combat Programmer 6665 | -1/Command | Core integrity fell below 50% 6676 | -1/Command | Core integrity fell below 20% 6680 | -1/Command | System corruption reached 10% 6683 | -1/Command | Destroyed by Combat Programmer with EMDS Last Messages --------------- Penetrated by EMDS Slug. Hds. Centrium Heavy Treads destroyed. Penetrated by EMDS Slug. The unstable cave ceiling collapses. Penetrated by EMDS Slug. Imp. Cesium-ion Thruster destroyed. Connecting with Door Terminal... ALERT: Suspicious activity at Terminal C001. Dispatching Investigation squad. Penetrated by EMDS Slug. Door Terminal disabled. Penetrated by EMDS Slug. Lgt. Antimatter Reactor destroyed. ALERT: Potential suspicious activity detected, Programmers report to Command Zone 8R. Penetrated by EMDS Slug. Sealed Barrier breached. Penetrated by EMDS Slug. Potential Cannon destroyed. Penetrated by EMDS Slug. Map ----- +----------------------------------------------------+ | ?????????????????????????????????????????????????? | | ?????????????????????????????????????????????????? | | ?????????????????????????????????????????????????? | | ?????????????????????????????????????????????????? | | ?????????????????????????????????????????????????? | | ?????????????????????????????????????????????????? | | ?????????????????????????????????????????????????? | | ?????????????????????????????????????????????????? | | ?????????????????????????????????????????????????? | | ?????????????????????????????????????????????????? | | ????????????????????????????? ?????????????????? | | ????????????????????????????? #????????????????? | | ????????????????????????????# #????????????????? | | ????????????????????????????# #????????????????? | | ????????????????????????????# #????????????????? | | ????????????????????????????# #????????????????? | | ????????????????????????????# #????????????????? | | ????????????????????????????# #????????????????? | | ????????????????????????????# ###??????????????? | | ????????????????????????????# # #??????????????? | | ????????????????????????????# #??????????????? | | ?????????????????????????#### ###?????????????? | | ??????????????????????"""# ##?##?##??????? | | ?????????????????????#"""# ## ## ####???? | | ???????????????????### "## # # # ##### | | ?""????????????????# @# ## | | """????????????????# #Ypp## ## * | | """??????????????????# Y !% | | """??????????????????# [!* | | ?"???????????????????# =[ | | ?"???????????????????# != | | ?"???????????????????# !] | | ""???????????????????# ## ## # | | ?????????????????????######?# ## ### | | ????????????????????????????####### #######?#### | | """???????????????????????????????#####??????????? | | ?????????????????????????????????????????????????? | | ?????????????????????????????????????????????????? | | ?????????????????????????????????????????????????? | | ?????????????????????????????????????????????????? | | ?????????????????????????????????????????????????? | | ?????????????????????????????????????????????????? | | ?????????????????????????????????????????????????? | | ?????????????????????????????????????????????????? | | ?????????????????????????????????????????????????? | | ?????????????????????????????????????????????????? | | ?????????????????????????????????????????????????? | | ?????????????????????????????????????????????????? | | ?????????????????????????????????????????????????? | | ?????????????????????????????????????????????????? | +----------------------------------------------------+ Best States ------------- Heat Dissipation 92 Energy Generation 43 Energy Capacity 1030 Matter Stores 300 Matter Capacity 300 Sight Range 16 Robot Scan Range 16 Terrain Scan Density 10 Additional Mass Support 20 Armor Coverage 300 Propulsion Shielding 90 Evasion (%) 66 Targeting Accuracy 52 Recoil Reduction 4 Offensive Hacking 66 Item Schematics ----------------- Imp. Targeting Computer | -7/Factory | Scanalyzed Imp. Cesium-ion Thruster | -7/Factory | Scanalyzed Combat Drone Bay | -7/Data Miner | Free Lgt. Regenerative Plating | -7/Data Miner | Free Multireflex Exoskeleton | -7/Data Miner | Free Gravity Neutralizer | -7/Data Miner | Free Scatter Rocket Array | -7/Data Miner | Free Field Propulsion Drive | -7/Data Miner | Free Imp. Weapon Cycler | -7/Data Miner | Free Imp. Remote Datajack | -7/Data Miner | Free Imp. Actuator Array | -7/Data Miner | Free Disruptor Cannon | -7/Data Miner | Free Matter Neutralizer | -7/Data Miner | Free Weapon Mount | -6/Factory | Hacked Exp. Targeting Computer | -5/Factory | Hacked Assault Drone Bay | -5/Zhirov | Free Exp. Heat Sink | -5/Zhirov | Free Exp. Optical Array | -5/Zhirov | Free Imp. Arc Thrower | -5/Zhirov | Free Exp. ECM Suite | -3/Research | Hacked Robot Schematics ------------------ W-25 Informer | -7/Data Miner | Free R-10 Processor | -7/Data Miner | Free G-47 Trooper | -7/Data Miner | Free S-27 Virus | -7/Data Miner | Free A-15 Conveyor | -7/Data Miner | Free M-22 Extractor | -7/Data Miner | Free Fabricated ------------ Weapon Mount | x2 | -5/Factory Repaired ---------- Nothing Alien Tech Used ----------------- Integrated Dissipator Transdimensional Reconstructor Core Regenerator Achievements -------------- Perfect Aim Challenges ------------ None Game ------ Seed PoweredMobileBay Manual? 0 Play Time 02:14:55 Cumulative 186.2 hours Start 2025.09.07 @ 11:18:17 End 2025.09.08 @ 12:50:00 Sessions 3 Manual Loads 0 Difficulty Rogue Special Mode None Game No. 155 Rogue 155 Adventurer 0 Explorer 0 Win Type - Total 9 Types 3/0/2/2/1/0/0/0/0/1 Lore% 85 Gallery% 82 Achievement% 64 Wizard Run 0 Options --------- Layout 1 ASCII 0 Keyboard 0 Movement Numpad Keybinds 0 Fullscreen 1 Font 24/Proggy Map View 50x35 Zoom Use 0% Tactical HUD 0 Map Filters NONE Filters NONE Steam 1 RUN: 326e29c4-f826-4d18-bbdd-322501f13e61